[Event "32nd GER-ch Seniors-65 2020"]
[Site "Magdeburg"]
[Date "2020.08.18"]
[Round "5.8"]
[White "Kannenberg, Karl-Heinz"]
[Black "Braeunlin, Herbert"]
[Result "1/2-1/2"]
[ECO "D00"]
[WhiteElo "2128"]
[BlackElo "2031"]
[Annotator "ChessBase"]
[PlyCount "138"]
[EventDate "2020.08.14"]
[EventType "swiss"]
[EventCountry "GER"]
[SourceTitle "playchess.com"]
[Source "ChessBase"]
[SourceQuality "1"]
[TimeControl "40/5400+30:1800+30"]

1. d4 {[%emt 0:00:00]} d5 {[%emt 0:00:00]} 2. Bf4 {[%emt 0:00:00]} e6 {[%emt 0:02:42]} 3. e3 {[%emt 0:00:12]} Bd6 {[%emt 0:00:25]} 4. Bg3 {[%emt 0:00:08]} f5 {[%emt 0:02:33]} 5. c4 {[%emt 0:10:02]} c6 {[%emt 0:00:18]} 6. Nd2 {[%emt 0:09:38]} Nf6 {[%emt 0:01:02]} 7. Ngf3 {[%emt 0:01:08]} O-O {[%emt 0:02:15]} 8. Be2 {[%emt 0:03:59]} b6 {[%emt 0:00:42]} 9. Ne5 {[%emt 0:00:59]} Bb7 {[%emt 0:01:47]} 10. O-O {[%emt 0:04:21]} Qe7 {[%emt 0:05:23]} 11. Rc1 {[%emt 0:01:54]} Bxe5 {[%emt 0:04:42]} 12. Bxe5 {[%emt 0:01:23]} Nbd7 {[%emt 0:01:13]} 13. Nf3 {[%emt 0:01:23]} Nxe5 {[%emt 0:01:00]} 14. Nxe5 {[%emt 0:00:07]} Nd7 {[%emt 0:00:30]} 15. Nxd7 {[%emt 0:08:06]} Qxd7 {[%emt 0:00:36]} 16. f4 {[%emt 0:00:52]} Qe7 {[%emt 0:06:29]} 17. c5 {[%emt 0:00:45]} Kh8 {[%emt 0:04:09]} 18. a4 {[%emt 0:03:05]} Rg8 {[%emt 0:01:42]} 19. b4 {[%emt 0:00:15]} g5 {[%emt 0:01:03]} 20. Rf2 {[%emt 0:15:24]} Rac8 {[%emt 0:03:19]} 21. Bf1 {[%emt 0:00:28]} Rg7 {[%emt 0:01:06]} 22. Rfc2 {[%emt 0:01:19]} gxf4 {[%emt 0:08:21]} 23. exf4 {[%emt 0:00:22]} Qh4 {[%emt 0:12:24]} 24. Qd2 {[%emt 0:01:22]} Rgc7 {[%emt 0:06:33]} 25. Qe3 {[%emt 0:00:39]} Qe7 {[%emt 0:01:23]} 26. Re1 {[%emt 0:01:44]} Re8 {[%emt 0:00:40]} 27. Qe5+ {[%emt 0:00:40]} Qg7 {[%emt 0:01:38]} 28. Qe3 {[%emt 0:06:50]} Bc8 {[%emt 0:07:29]} 29. Rec1 {[%emt 0:02:33]} Bd7 {[%emt 0:00:09]} 30. Ba6 {[%emt 0:13:35]} Bc8 {[%emt 0:04:30]} 31. cxb6 {[%emt 0:02:08]} axb6 {[%emt 0:00:02]} 32. Bb5 {[%emt 0:00:12]} Rg8 {[%emt 0:13:57]} 33. Qe5 {[%emt 0:00:20]} Qxe5 {[%emt 0:00:02]} 34. dxe5 {[%emt 0:00:17]} Bd7 {[%emt 0:01:55]} 35. Bxc6 {[%emt 0:00:31]} Rgc8 {[%emt 0:00:02]} 36. b5 {[%emt 0:00:12]} Kg7 {[%emt 0:00:18]} 37. Kf2 {[%emt 0:00:51]} Kf7 {[%emt 0:00:20]} 38. Rc3 {[%emt 0:04:39]} Bxc6 {[%emt 0:02:33]} 39. bxc6 {[%emt 0:01:01]} Ra8 {[%emt 0:02:57]} 40. Rb1 {[%emt 0:04:52]} Ra6 {[%emt 0:01:10]} 41. Rb4 {[%emt 0:31:05]} Ke7 {[%emt 0:05:23]} 42. Ke2 {[%emt 0:00:00]} Kd8 43. Kf3 {[%emt 0:00:00]} Kc8 {[%emt 0:13:48]} 44. h3 {[%emt 0:00:00]} h5 {[%emt 0:00:36]} 45. g4 {[%emt 0:00:00]} hxg4+ {[%emt 0:00:03]} 46. hxg4 {[%emt 0:00:00]} fxg4+ {[%emt 0:00:10]} 47. Kxg4 {[%emt 0:00:00]} Rg7+ {[%emt 0:00:03]} 48. Kf3 {[%emt 0:00:00]} Kc7 {[%emt 0:00:01]} 49. Rcb3 {[%emt 0:00:00]} Kxc6 {[%emt 0:07:45]} 50. a5 {[%emt 0:00:00]} Rb7 {[%emt 0:02:02]} 51. f5 {[%emt 0:02:42]} exf5 {[%emt 0:02:53]} 52. Kf4 {[%emt 0:01:14]} Rxa5 {[%emt 0:00:19]} 53. Kxf5 {[%emt 0:00:10]} Rc5 {[%emt 0:00:30]} 54. Rh4 {[%emt 0:00:38]} Rc4 {[%emt 0:00:28]} 55. Rh6+ {[%emt 0:00:25]} Kc5 {[%emt 0:00:18]} 56. e6 {[%emt 0:01:14]} Re4 {[%emt 0:01:17]} 57. Rc3+ {[%emt 0:00:45]} Kd4 {[%emt 0:00:56]} 58. Rhh3 {[%emt 0:00:17]} Re5+ {[%emt 0:00:37]} 59. Kf6 {[%emt 0:00:06]} Re1 {[%emt 0:01:01]} 60. e7 {[%emt 0:01:20]} Rf1+ {[%emt 0:01:17]} 61. Rhf3 {[%emt 0:00:31]} Rxf3+ {[%emt 0:00:08]} 62. Rxf3 {[%emt 0:00:11]} Rxe7 {[%emt 0:00:02]} 63. Kxe7 {[%emt 0:00:03]} Ke4 {[%emt 0:00:29]} 64. Rf8 {[%emt 0:01:22]} d4 {[%emt 0:00:27]} 65. Kd6 {[%emt 0:00:45]} d3 {[%emt 0:00:16]} 66. Kc6 {[%emt 0:01:11]} d2 {[%emt 0:00:31]} 67. Rd8 {[%emt 0:00:10]} Ke3 {[%emt 0:00:09]} 68. Kb5 {[%emt 0:00:29]} Ke2 {[%emt 0:00:11]} 69. Re8+ {[%emt 0:00:22]} Kf2 {[%emt 0:00:05]} 1/2-1/2

[Event "32nd GER-ch Seniors-65 2020"]
[Site "Magdeburg"]
[Date "2020.08.19"]
[Round "6.1"]
[White "Dresen, Ulrich"]
[Black "Andersen, Knut"]
[Result "1-0"]
[WhiteElo "2230"]
[BlackElo "2047"]
[Annotator "ChessBase"]
[PlyCount "109"]
[EventDate "2020.08.14"]
[EventType "swiss"]
[EventCountry "GER"]
[SourceTitle "playchess.com"]
[Source "ChessBase"]
[SourceQuality "1"]
[TimeControl "40/5400+30:1800+30"]

1. d4 {[%emt 0:00:00]} Nf6 {[%emt 0:00:00]} 2. Nf3 {[%emt 0:00:00]} e6 {[%emt 0:00:00]} 3. Bf4 {[%emt 0:00:00]} c5 {[%emt 0:00:26]} 4. e3 {[%emt 0:00:48]} Nc6 {[%emt 0:02:00]} 5. c3 {[%emt 0:00:13]} d5 {[%emt 0:01:04]} 6. Nbd2 {[%emt 0:00:12]} cxd4 {[%emt 0:02:33]} 7. exd4 {[%emt 0:00:59]} Bd6 {[%emt 0:00:29]} 8. Bg3 {[%emt 0:00:21]} O-O {[%emt 0:01:53]} 9. Bb5 {[%emt 0:14:00]} Qc7 {[%emt 0:02:18]} 10. O-O {[%emt 0:04:32]} Bd7 {[%emt 0:13:53]} 11. Re1 {[%emt 0:05:52]} Bxg3 {[%emt 0:05:48]} 12. hxg3 {[%emt 0:00:11]} Rfe8 {[%emt 0:06:24]} 13. Qe2 {[%emt 0:12:19]} g6 {[%emt 0:15:59]} 14. Rad1 {[%emt 0:09:19]} a6 {[%emt 0:04:38]} 15. Bxc6 {[%emt 0:02:41]} Bxc6 {[%emt 0:00:07]} 16. Ne5 {[%emt 0:04:51]} Nd7 {[%emt 0:00:49]} 17. Qf3 {[%emt 0:06:01]} Nxe5 {[%emt 0:02:53]} 18. Rxe5 {[%emt 0:00:48]} Kg7 {[%emt 0:01:35]} 19. Rde1 {[%emt 0:00:49]} Qd6 {[%emt 0:05:44]} 20. Qg4 {[%emt 0:08:07]} Bd7 {[%emt 0:01:04]} 21. f4 {[%emt 0:02:11]} f6 {[%emt 0:00:39]} 22. R5e3 {[%emt 0:01:34]} h5 {[%emt 0:15:19]} 23. Qh4 {[%emt 0:05:01]} b5 {[%emt 0:01:14]} 24. Nf3 {[%emt 0:01:42]} Rf8 {[%emt 0:03:05]} 25. Nd2 {[%emt 0:03:24]} a5 {[%emt 0:00:22]} 26. Nb3 {[%emt 0:00:04]} Rae8 {[%emt 0:05:04]} 27. Nc5 {[%emt 0:00:31]} Bc8 {[%emt 0:02:29]} 28. b4 {[%emt 0:00:56]} axb4 {[%emt 0:00:37]} 29. cxb4 {[%emt 0:00:06]} Re7 {[%emt 0:01:17]} 30. Rf1 {[%emt 0:00:47]} Ra7 {[%emt 0:00:27]} 31. Rf2 {[%emt 0:01:13]} Rff7 {[%emt 0:02:40]} 32. Rfe2 {[%emt 0:00:31]} Rfe7 {[%emt 0:00:23]} 33. Kf2 {[%emt 0:00:15]} Kh6 {[%emt 0:00:40]} 34. Qxf6 {[%emt 0:00:20]} Rf7 {[%emt 0:00:28]} 35. Qg5+ {[%emt 0:00:54]} Kh7 {[%emt 0:00:16]} 36. Kg1 {[%emt 0:04:01]} Rf5 {[%emt 0:01:42]} 37. Qh4 {[%emt 0:00:05]} Qf8 {[%emt 0:00:17]} 38. Kh2 {[%emt 0:01:05]} Qg7 {[%emt 0:01:09]} 39. Qd8 {[%emt 0:00:45]} Rf8 {[%emt 0:00:35]} 40. Qb6 {[%emt 0:00:39]} Raf7 {[%emt 0:00:41]} 41. Rxe6 {[%emt 0:32:18]} h4 {[%emt 0:30:52]} 42. gxh4 {[%emt 0:05:58]} Rxf4 {[%emt 0:00:00]} 43. Re7 {[%emt 0:00:00]} Rxh4+ {[%emt 0:00:00]} 44. Kg1 {[%emt 0:00:00]} Rf7 {[%emt 0:00:00]} 45. Rxf7 {[%emt 0:00:00]} Qxf7 {[%emt 0:00:00]} 46. Qd8 {[%emt 0:00:00]} Qf4 {[%emt 0:00:00]} 47. Re7+ {[%emt 0:00:00]} Kh6 {[%emt 0:00:00]} 48. Qh8+ {[%emt 0:00:00]} Kg5 {[%emt 0:00:00]} 49. Qe5+ {[%emt 0:00:00]} Qxe5 {[%emt 0:00:00]} 50. Rxe5+ {[%emt 0:00:00]} Bf5 {[%emt 0:00:00]} 51. Rxd5 {[%emt 0:00:00]} Kf6 {[%emt 0:00:00]} 52. g3 {[%emt 0:00:00]} Rh8 {[%emt 0:00:00]} 53. Rd6+ {[%emt 0:00:00]} Ke7 {[%emt 0:00:00]} 54. Rb6 {[%emt 0:00:00]} Rd8 {[%emt 0:00:00]} 55. Rxb5 {[%emt 0:00:00]} 1-0

[Event "32nd GER-ch Seniors-65 2020"]
[Site "Magdeburg"]
[Date "2020.08.19"]
[Round "6.2"]
[White "Kierzek, Matthias"]
[Black "Schulz, Michael"]
[Result "1-0"]
[WhiteElo "2228"]
[BlackElo "2132"]
[Annotator "ChessBase"]
[PlyCount "112"]
[EventDate "2020.08.14"]
[EventType "swiss"]
[EventCountry "GER"]
[SourceTitle "playchess.com"]
[Source "ChessBase"]
[SourceQuality "1"]
[TimeControl "40/5400+30:1800+30"]

1. d4 {[%emt 0:00:00]} Nf6 {[%emt 0:00:00]} 2. c4 {[%emt 0:00:00]} c5 {[%emt 0:00:00]} 3. d5 {[%emt 0:00:00]} e6 {[%emt 0:00:00]} 4. Nc3 {[%emt 0:00:00]} exd5 {[%emt 0:00:00]} 5. cxd5 {[%emt 0:00:00]} d6 {[%emt 0:00:06]} 6. Nf3 {[%emt 0:00:02]} g6 {[%emt 0:00:15]} 7. Bf4 {[%emt 0:00:07]} Bg7 {[%emt 0:00:28]} 8. Qa4+ {[%emt 0:00:14]} Bd7 {[%emt 0:00:12]} 9. Qb3 {[%emt 0:00:08]} b5 {[%emt 0:00:47]} 10. Bxd6 {[%emt 0:00:07]} Qb6 {[%emt 0:00:07]} 11. Be5 {[%emt 0:00:06]} c4 {[%emt 0:00:14]} 12. Qd1 {[%emt 0:02:24]} O-O {[%emt 0:00:18]} 13. e3 {[%emt 0:00:06]} b4 {[%emt 0:00:35]} 14. Nb1 {[%emt 0:00:05]} Rc8 {[%emt 0:00:37]} 15. Be2 {[%emt 0:00:07]} Bf5 {[%emt 0:01:25]} 16. Nfd2 {[%emt 0:08:56]} Nbd7 {[%emt 0:09:07]} 17. Bd4 {[%emt 0:00:59]} Qa5 {[%emt 0:09:53]} 18. Nxc4 {[%emt 0:03:35]} Qxd5 {[%emt 0:00:47]} 19. Nbd2 {[%emt 0:00:19]} Nc5 {[%emt 0:06:55]} 20. O-O {[%emt 0:05:34]} Rab8 {[%emt 0:06:15]} 21. Nb3 {[%emt 0:13:28]} Na4 {[%emt 0:17:35]} 22. Bxa7 {[%emt 0:02:17]} Ra8 {[%emt 0:05:48]} 23. Qxd5 {[%emt 0:02:37]} Nxd5 {[%emt 0:00:06]} 24. Bd4 {[%emt 0:00:11]} Bxd4 {[%emt 0:00:27]} 25. Nxd4 {[%emt 0:00:42]} Be6 {[%emt 0:03:28]} 26. Nxe6 {[%emt 0:08:39]} fxe6 {[%emt 0:00:05]} 27. a3 {[%emt 0:09:00]} Rab8 {[%emt 0:04:25]} 28. Bg4 {[%emt 0:15:35]} Nc5 {[%emt 0:06:04]} 29. axb4 {[%emt 0:01:16]} Rxb4 {[%emt 0:00:50]} 30. Rfc1 {[%emt 0:03:46]} h5 {[%emt 0:03:40]} 31. Nd6 {[%emt 0:01:58]} Rc7 {[%emt 0:01:59]} 32. Bf3 {[%emt 0:12:43]} Rxb2 {[%emt 0:01:29]} 33. h4 {[%emt 0:02:08]} Kf8 {[%emt 0:04:25]} 34. Nc4 {[%emt 0:03:27]} Nb3 {[%emt 0:04:35]} 35. Nxb2 {[%emt 0:00:30]} Rxc1+ {[%emt 0:00:07]} 36. Rxc1 {[%emt 0:00:05]} Nxc1 {[%emt 0:00:04]} 37. Be4 {[%emt 0:01:39]} Kg7 {[%emt 0:01:03]} 38. Nd3 {[%emt 0:02:43]} Nxd3 {[%emt 0:03:26]} 39. Bxd3 {[%emt 0:00:03]} Kf6 {[%emt 0:00:25]} 40. Bc4 {[%emt 0:01:25]} Ne7 {[%emt 0:00:40]} 41. g3 {[%emt 0:31:36]} e5 {[%emt 0:31:02]} 42. f3 {[%emt 0:00:00]} Nf5 {[%emt 0:00:00]} 43. Kf2 {[%emt 0:00:00]} Nd6 {[%emt 0:00:00]} 44. Bd3 {[%emt 0:00:00]} Nb7 {[%emt 0:00:00]} 45. f4 {[%emt 0:00:00]} exf4 {[%emt 0:00:00]} 46. gxf4 {[%emt 0:00:00]} Nc5 {[%emt 0:00:00]} 47. Bc2 {[%emt 0:00:00]} Ne6 {[%emt 0:00:00]} 48. Kf3 {[%emt 0:00:00]} Nd8 {[%emt 0:00:00]} 49. e4 {[%emt 0:00:00]} Nc6 {[%emt 0:00:00]} 50. Ba4 {[%emt 0:00:00]} Ne7 {[%emt 0:00:00]} 51. Bd7 {[%emt 0:00:00]} Ng8 {[%emt 0:00:00]} 52. Ke3 {[%emt 0:00:00]} Ke7 {[%emt 0:00:00]} 53. Bh3 {[%emt 0:00:00]} Kf6 {[%emt 0:00:00]} 54. Kd4 {[%emt 0:00:00]} Ne7 {[%emt 0:00:00]} 55. Kc5 {[%emt 0:00:00]} Kf7 {[%emt 0:00:00]} 56. Kd6 {[%emt 0:00:00]} g5 1-0

[Event "32nd GER-ch Seniors-65 2020"]
[Site "Magdeburg"]
[Date "2020.08.19"]
[Round "6.3"]
[White "Harringer, Manfred"]
[Black "Khanukov, Boris"]
[Result "1/2-1/2"]
[WhiteElo "2008"]
[BlackElo "2291"]
[Annotator "ChessBase"]
[PlyCount "100"]
[EventDate "2020.08.14"]
[EventType "swiss"]
[EventCountry "GER"]
[SourceTitle "playchess.com"]
[Source "ChessBase"]
[SourceQuality "1"]
[TimeControl "40/5400+30:1800+30"]

1. e4 {[%emt 0:00:00]} g6 {[%emt 0:00:00]} 2. d4 {[%emt 0:00:00]} Bg7 {[%emt 0:00:00]} 3. Nc3 {[%emt 0:00:37]} c6 {[%emt 0:00:12]} 4. Nf3 {[%emt 0:01:18]} d5 {[%emt 0:00:23]} 5. exd5 {[%emt 0:05:20]} cxd5 {[%emt 0:01:12]} 6. Bb5+ {[%emt 0:00:08]} Nc6 {[%emt 0:00:46]} 7. O-O {[%emt 0:02:11]} a6 {[%emt 0:00:41]} 8. Bxc6+ {[%emt 0:04:25]} bxc6 {[%emt 0:00:09]} 9. Na4 {[%emt 0:03:16]} Bg4 {[%emt 0:00:52]} 10. c3 {[%emt 0:00:25]} Nf6 {[%emt 0:01:31]} 11. h3 {[%emt 0:03:54]} Bxf3 {[%emt 0:00:22]} 12. Qxf3 O-O {[%emt 0:01:00]} 13. Nc5 {[%emt 0:02:03]} Nd7 {[%emt 0:00:23]} 14. Nd3 {[%emt 0:01:19]} Re8 {[%emt 0:05:50]} 15. Qg4 {[%emt 0:07:25]} e6 {[%emt 0:03:55]} 16. Re1 {[%emt 0:06:21]} a5 {[%emt 0:07:19]} 17. Bf4 {[%emt 0:04:10]} Qe7 {[%emt 0:02:08]} 18. Qg3 {[%emt 0:00:22]} a4 {[%emt 0:09:19]} 19. Bd6 {[%emt 0:02:02]} Qd8 {[%emt 0:01:10]} 20. Re2 {[%emt 0:01:33]} Qc8 {[%emt 0:01:55]} 21. Rae1 {[%emt 0:00:32]} Nf6 {[%emt 0:01:45]} 22. Nc5 {[%emt 0:03:45]} Nd7 {[%emt 0:03:19]} 23. Nd3 {[%emt 0:00:07]} Ra5 {[%emt 0:00:43]} 24. f4 {[%emt 0:05:24]} Kh8 {[%emt 0:04:05]} 25. Be5 Rg8 {[%emt 0:15:05]} 26. Bxg7+ {[%emt 0:09:32]} Rxg7 {[%emt 0:00:09]} 27. Qh4 {[%emt 0:01:34]} Qf8 {[%emt 0:04:26]} 28. Ne5 {[%emt 0:04:12]} Nxe5 {[%emt 0:02:00]} 29. fxe5 {[%emt 0:00:25]} c5 {[%emt 0:01:08]} 30. b4 {[%emt 0:02:56]} axb3 {[%emt 0:01:09]} 31. axb3 {[%emt 0:00:14]} g5 {[%emt 0:00:45]} 32. Qg4 {[%emt 0:07:15]} cxd4 {[%emt 0:01:24]} 33. cxd4 {[%emt 0:06:03]} Rb5 {[%emt 0:01:55]} 34. Re3 {[%emt 0:02:14]} Qb8 {[%emt 0:03:14]} 35. Qd1 {[%emt 0:00:28]} Qb6 {[%emt 0:04:43]} 36. Rf1 {[%emt 0:01:22]} Rb4 {[%emt 0:00:18]} 37. Rd3 {[%emt 0:00:09]} Qd8 {[%emt 0:05:39]} 38. Qh5 {[%emt 0:03:20]} Kg8 {[%emt 0:01:54]} 39. Rc1 {[%emt 0:03:05]} Rg6 {[%emt 0:02:17]} 40. Qd1 {[%emt 0:04:36]} Rb7 {[%emt 0:03:22]} 41. Qc2 {[%emt 0:33:32]} g4 {[%emt 0:31:23]} 42. Qc6 {[%emt 0:00:00]} Rb8 {[%emt 0:00:00]} 43. Qc7 {[%emt 0:00:00]} gxh3 {[%emt 0:00:00]} 44. Qxd8+ {[%emt 0:00:00]} Rxd8 {[%emt 0:00:00]} 45. Rxh3 {[%emt 0:00:00]} Rg4 {[%emt 0:00:00]} 46. Rd1 {[%emt 0:00:00]} Rc8 {[%emt 0:00:00]} 47. Rhd3 {[%emt 0:00:00]} Kf8 {[%emt 0:00:00]} 48. Rf1 {[%emt 0:00:00]} Ke8 {[%emt 0:00:00]} 49. Rf2 {[%emt 0:00:00]} Re4 {[%emt 0:00:00]} 50. Rdf3 {[%emt 0:00:47]} Rc7 {[%emt 0:00:00]} 1/2-1/2

[Event "32nd GER-ch Seniors-65 2020"]
[Site "Magdeburg"]
[Date "2020.08.19"]
[Round "6.5"]
[White "Syre, Christian"]
[Black "Krauseneck, Peter"]
[Result "0-1"]
[WhiteElo "2222"]
[BlackElo "2120"]
[Annotator "ChessBase"]
[PlyCount "105"]
[EventDate "2020.08.14"]
[EventType "swiss"]
[EventCountry "GER"]
[SourceTitle "playchess.com"]
[Source "ChessBase"]
[SourceQuality "1"]
[TimeControl "40/5400+30:1800+30"]

1. Nf3 {[%emt 0:00:00]} f5 {[%emt 0:00:00]} 2. g3 {[%emt 0:00:25]} Nf6 {[%emt 0:00:00]} 3. Bg2 {[%emt 0:00:01]} e6 {[%emt 0:00:02]} 4. c4 {[%emt 0:00:44]} c6 {[%emt 0:00:48]} 5. O-O {[%emt 0:01:36]} Be7 {[%emt 0:02:17]} 6. Nc3 {[%emt 0:01:27]} O-O {[%emt 0:00:31]} 7. Qc2 {[%emt 0:00:52]} d5 {[%emt 0:00:10]} 8. d4 {[%emt 0:00:37]} Ne4 {[%emt 0:01:14]} 9. Rb1 {[%emt 0:00:21]} Nd7 {[%emt 0:00:50]} 10. b4 {[%emt 0:00:45]} a6 {[%emt 0:12:32]} 11. Bf4 {[%emt 0:11:45]} g5 {[%emt 0:02:53]} 12. Be5 {[%emt 0:00:04]} g4 {[%emt 0:12:59]} 13. Ne1 {[%emt 0:00:23]} Nxe5 {[%emt 0:03:38]} 14. dxe5 {[%emt 0:00:02]} Ng5 {[%emt 0:04:14]} 15. cxd5 {[%emt 0:15:53]} exd5 {[%emt 0:06:59]} 16. Nd3 {[%emt 0:01:40]} Ne6 {[%emt 0:01:07]} 17. f4 {[%emt 0:13:02]} gxf3 {[%emt 0:07:17]} 18. exf3 {[%emt 0:00:10]} f4 {[%emt 0:00:25]} 19. Qf2 {[%emt 0:09:47]} Kh8 {[%emt 0:02:34]} 20. Na4 {[%emt 0:01:14]} Bg5 {[%emt 0:07:20]} 21. Kh1 {[%emt 0:10:15]} Qe8 {[%emt 0:11:08]} 22. Nb6 {[%emt 0:08:14]} Rb8 {[%emt 0:00:05]} 23. Nxc8 {[%emt 0:00:36]} Rxc8 {[%emt 0:00:11]} 24. Bh3 {[%emt 0:00:16]} Rc7 {[%emt 0:00:20]} 25. Bxe6 {[%emt 0:01:40]} Qxe6 {[%emt 0:00:02]} 26. g4 {[%emt 0:00:28]} h5 {[%emt 0:05:35]} 27. Rg1 {[%emt 0:02:31]} Rh7 {[%emt 0:01:48]} 28. Rb2 {[%emt 0:02:25]} hxg4 {[%emt 0:06:25]} 29. Rxg4 {[%emt 0:00:03]} Qf5 {[%emt 0:05:17]} 30. Qd4 {[%emt 0:02:32]} Rh5 {[%emt 0:04:33]} 31. Rbg2 {[%emt 0:00:49]} Kh7 {[%emt 0:00:03]} 32. e6 {[%emt 0:08:38]} Bf6 {[%emt 0:00:51]} 33. Qxf4 {[%emt 0:06:43]} Qxd3 {[%emt 0:00:29]} 34. Qc7+ {[%emt 0:00:26]} Kh8 {[%emt 0:00:31]} 35. Rg8+ {[%emt 0:00:01]} Rxg8 {[%emt 0:00:10]} 36. Rxg8+ {[%emt 0:00:01]} Kxg8 {[%emt 0:00:02]} 37. Qf7+ {[%emt 0:00:07]} Kh8 {[%emt 0:00:31]} 38. Qxh5+ {[%emt 0:00:27]} Qh7 {[%emt 0:00:37]} 39. Qe8+ {[%emt 0:00:01]} Qg8 {[%emt 0:00:43]} 40. Qh5+ {[%emt 0:00:01]} Kg7 {[%emt 0:00:23]} 41. Qg4+ {[%emt 0:11:01]} Kf8 {[%emt 0:00:35]} 42. e7+ {[%emt 0:00:03]} Bxe7 {[%emt 0:01:04]} 43. Qc8+ {[%emt 0:00:07]} Kf7 {[%emt 0:02:20]} 44. Qf5+ {[%emt 0:02:08]} Ke8 {[%emt 0:00:57]} 45. Qc8+ {[%emt 0:00:28]} Bd8 {[%emt 0:00:31]} 46. Qxb7 {[%emt 0:00:18]} Qe6 {[%emt 0:01:12]} 47. Qxa6 {[%emt 0:01:03]} Bc7 {[%emt 0:00:43]} 48. Kg2 {[%emt 0:01:43]} Kd7 {[%emt 0:00:29]} 49. Qd3 {[%emt 0:01:24]} Qe5 {[%emt 0:01:00]} 50. a3 {[%emt 0:03:28]} Qxh2+ {[%emt 0:01:18]} 51. Kf1 {[%emt 0:00:02]} Qh3+ {[%emt 0:04:12]} 52. Ke2 {[%emt 0:00:53]} Bb6 {[%emt 0:01:40]} 53. Kd1 {[%emt 0:02:40]} 0-1

[Event "32nd GER-ch Seniors-65 2020"]
[Site "Magdeburg"]
[Date "2020.08.20"]
[Round "7.2"]
[White "Krauseneck, Peter"]
[Black "Andersen, Knut"]
[Result "1-0"]
[ECO "A45"]
[WhiteElo "2120"]
[BlackElo "2047"]
[Annotator "ChessBase"]
[PlyCount "134"]
[EventDate "2020.08.14"]
[EventType "swiss"]
[EventCountry "GER"]
[SourceTitle "playchess.com"]
[Source "ChessBase"]
[SourceQuality "1"]
[TimeControl "40/5400+30:1800+30"]

1. d4 {[%emt 0:00:00]} Nf6 {[%emt 0:00:00]} 2. e3 {[%emt 0:00:01]} e6 {[%emt 0:00:25]} 3. f4 {[%emt 0:00:23]} b6 {[%emt 0:01:44]} 4. Nf3 {[%emt 0:00:17]} Bb7 {[%emt 0:01:38]} 5. Bd3 {[%emt 0:00:08]} Be7 {[%emt 0:00:34]} 6. O-O {[%emt 0:00:09]} O-O {[%emt 0:00:15]} 7. Nbd2 {[%emt 0:10:36]} d5 {[%emt 0:00:51]} 8. Qe1 {[%emt 0:00:23]} Nbd7 {[%emt 0:01:14]} 9. Ne5 {[%emt 0:02:40]} Ne4 {[%emt 0:00:42]} 10. Nxe4 {[%emt 0:09:33]} dxe4 {[%emt 0:01:09]} 11. Bb5 {[%emt 0:03:35]} Nf6 {[%emt 0:04:22]} 12. Bd2 {[%emt 0:02:07]} Qd6 {[%emt 0:04:24]} 13. a3 {[%emt 0:09:01]} a5 {[%emt 0:03:04]} 14. c4 {[%emt 0:11:06]} c6 {[%emt 0:12:32]} 15. Ba4 {[%emt 0:00:07]} Ne8 {[%emt 0:03:34]} 16. b4 {[%emt 0:12:27]} axb4 {[%emt 0:11:31]} 17. axb4 {[%emt 0:10:01]} f6 {[%emt 0:01:01]} 18. Ng4 {[%emt 0:00:20]} Nc7 {[%emt 0:01:00]} 19. Qb1 {[%emt 0:03:33]} Ra7 {[%emt 0:11:31]} 20. c5 {[%emt 0:02:09]} bxc5 {[%emt 0:01:02]} 21. bxc5 {[%emt 0:00:03]} Qd8 {[%emt 0:13:01]} 22. Qb6 {[%emt 0:00:37]} Nb5 {[%emt 0:00:10]} 23. Bxb5 {[%emt 0:02:55]} Rxa1 {[%emt 0:00:10]} 24. Rxa1 {[%emt 0:00:11]} Qxb6 {[%emt 0:00:11]} 25. cxb6 {[%emt 0:00:10]} cxb5 {[%emt 0:00:07]} 26. Ra7 {[%emt 0:05:43]} Rb8 {[%emt 0:00:12]} 27. Nf2 {[%emt 0:01:43]} Bd8 {[%emt 0:01:44]} 28. Ba5 {[%emt 0:00:39]} f5 {[%emt 0:00:25]} 29. Nd1 {[%emt 0:01:47]} Bd5 {[%emt 0:03:11]} 30. Ra6 {[%emt 0:02:33]} Kf7 {[%emt 0:03:47]} 31. Kf2 {[%emt 0:01:12]} Ke8 {[%emt 0:00:39]} 32. Ke1 {[%emt 0:02:20]} Kd7 {[%emt 0:03:31]} 33. Nc3 {[%emt 0:02:52]} Bb7 {[%emt 0:00:22]} 34. Ra7 {[%emt 0:00:19]} Kc6 {[%emt 0:00:10]} 35. Bb4 {[%emt 0:01:01]} Bxb6 {[%emt 0:00:44]} 36. Ra1 {[%emt 0:00:45]} Ra8 {[%emt 0:02:39]} 37. Rc1 {[%emt 0:00:14]} Ba5 {[%emt 0:02:50]} 38. Bxa5 {[%emt 0:01:30]} Rxa5 {[%emt 0:00:40]} 39. Nxe4+ {[%emt 0:00:23]} Kb6 {[%emt 0:00:52]} 40. Nc5 {[%emt 0:01:58]} Bd5 {[%emt 0:01:24]} 41. Nd7+ {[%emt 0:07:41]} Ka6 {[%emt 0:00:51]} 42. Nc5+ {[%emt 0:00:03]} Ka7 {[%emt 0:00:09]} 43. g3 {[%emt 0:01:54]} Ra2 {[%emt 0:00:40]} 44. Nd3 {[%emt 0:06:29]} Rxh2 {[%emt 0:03:48]} 45. Rc7+ {[%emt 0:00:24]} Kb6 {[%emt 0:00:27]} 46. Rxg7 {[%emt 0:00:01]} h5 {[%emt 0:01:29]} 47. Rh7 {[%emt 0:09:20]} Bc4 {[%emt 0:03:29]} 48. Nf2 b4 49. Rh8 {[%emt 0:05:15]} Kb5 {[%emt 0:02:12]} 50. Rb8+ {[%emt 0:00:35]} Ka4 {[%emt 0:00:12]} 51. Ra8+ {[%emt 0:02:05]} Kb3 {[%emt 0:00:07]} 52. Rh8 {[%emt 0:02:50]} Kc3 {[%emt 0:02:12]} 53. Rc8 {[%emt 0:00:43]} Rg2 {[%emt 0:06:09]} 54. Nd1+ {[%emt 0:00:36]} Kd3 {[%emt 0:01:38]} 55. Kf1 {[%emt 0:00:07]} Rc2 {[%emt 0:00:35]} 56. Ke1 {[%emt 0:01:19]} b3 {[%emt 0:00:50]} 57. Rb8 {[%emt 0:00:34]} Re2+ {[%emt 0:02:02]} 58. Kf1 {[%emt 0:00:01]} Kd2 {[%emt 0:01:29]} 59. Nb2 {[%emt 0:00:41]} Re1+ {[%emt 0:01:55]} 60. Kf2 {[%emt 0:00:15]} Bd5 {[%emt 0:00:19]} 61. Rh8 {[%emt 0:00:58]} Re2+ {[%emt 0:01:15]} 62. Kf1 {[%emt 0:00:04]} Rxe3 {[%emt 0:00:22]} 63. Rxh5 {[%emt 0:00:20]} Rf3+ {[%emt 0:01:02]} 64. Kg2 {[%emt 0:00:42]} Kc2 {[%emt 0:00:25]} 65. Na4 {[%emt 0:00:26]} Rd3+ {[%emt 0:00:49]} 66. Kf2 {[%emt 0:00:41]} Rxd4 {[%emt 0:00:14]} 67. Nb6 {[%emt 0:00:14]} b2 {[%emt 0:00:33]} 1-0